fUSD/lending_fUSD_20260507
["ID","MTS","AMOUNT","RATE_DAILY","PERIOD"]
[421759084,1778116020000,-1070.57902925,0.00011999,3]
[421759083,1778116020000,-1070.57902925,0.00011999,3]
[421759086,1778116020000,-200.97456133,0.00011999,3]
[421759089,1778116022000,-10000.01,0.00012,2]
[421759088,1778116022000,-10000.01,0.00012,2]
[421759092,1778116023000,-10000.01,0.00012,2]
[421759090,1778116023000,-162.69,0.00011988,2]
[421759091,1778116023000,-9837.32,0.00012,2]
[421759094,1778116024000,-150.0,0.00011999,2]
[421759093,1778116024000,-300.0,0.00011998,2]
[421759096,1778116024000,-2905255.47910249,0.00012,2]
[421759095,1778116024000,-9550.01,0.00012,2]
[421759098,1778116025000,202.0,0.00011836,2]
[421759097,1778116025000,202.0,0.00011142,2]
[421759102,1778116048000,500.0,0.00011999,2]
[421759103,1778116048000,500.0,0.00011999,2]
[421759104,1778116048000,500.0,0.00011999,2]
[421759101,1778116048000,500.0,0.00011999,2]
[421759105,1778116048000,394.23848718,0.00011999,2]
[421759108,1778116048000,500.0,0.00011999,2]
[421759107,1778116048000,500.0,0.00011999,2]
[421759106,1778116048000,500.0,0.00011999,2]
[421759112,1778116049000,217.67801426,0.00011999,2]
[421759113,1778116049000,292.64140286,0.00011999,2]
[421759111,1778116049000,105.77151282,0.00011999,2]
[421759110,1778116049000,500.0,0.00011999,2]
[421759109,1778116049000,500.0,0.00011999,2]
[421759114,1778116056000,184.0912663,0.00012004,2]
[421759117,1778116091000,495.83633044,0.00011999,2]
[421759116,1778116091000,228.4815604,0.00011999,2]
[421759115,1778116091000,319.20071042,0.00011999,2]
[421759119,1778116141000,500.17963805,0.00011999,2]
[421759118,1778116141000,500.0,0.00011999,2]
[421759121,1778116141000,467.62042088,0.00011999,2]
[421759120,1778116141000,500.0,0.00011999,2]
[421759122,1778116141000,500.0,0.00011999,2]
[421759123,1778116168000,-166.0,0.00012004,2]
[421759124,1778116168000,-129.87463577,0.000121,2]
[421759127,1778116211000,500.0,0.00028392,120]
[421759126,1778116211000,500.0,0.00028392,120]
[421759125,1778116211000,500.0,0.00027399,120]
[421759128,1778116212000,500.0,0.00028392,120]
[421759129,1778116212000,402.37,0.00028392,120]
[421759166,1778116232000,-174.19344909,0.00012477,2]
[421759168,1778116232000,-165.7905639,0.00012694,2]
[421759169,1778116232000,-22729.47,0.00012694,2]
[421759177,1778116232000,-23629.32,0.00012756,2]
[421759173,1778116232000,-999.99,0.00012694,2]
[421759170,1778116232000,-6817.85,0.00012694,2]
[421759171,1778116232000,-4999.99,0.00012694,2]
[421759181,1778116232000,-9999.99,0.00012756,2]
[421759172,1778116232000,-1214.25,0.00012694,2]
[421759174,1778116232000,-300.0,0.00012756,2]
[421759176,1778116232000,-62898.26,0.00012756,2]
[421759179,1778116232000,-1625.78,0.00012756,2]
[421759183,1778116232000,-499.99,0.00012756,2]
[421759182,1778116232000,-804.95,0.00012756,2]
[421759178,1778116232000,-150.99,0.00012756,2]
[421759175,1778116232000,-1094.57,0.00012756,2]
[421759167,1778116232000,-310.83754434,0.000125,2]
[421759151,1778116232000,-300.0,0.0001212,2]
[421759162,1778116232000,-151.74680912,0.00012477,2]
[421759148,1778116232000,-54.10536423,0.000121,2]
[421759149,1778116232000,-911.50658496,0.00012114,2]
[421759150,1778116232000,-513.86440014,0.00012114,2]
[421759153,1778116232000,-73699.29084847,0.00012121,2]
[421759152,1778116232000,-1200.0,0.0001212,2]
[421759154,1778116232000,-355.00000001,0.00012121,2]
[421759155,1778116232000,-74105.65294112,0.00012121,2]
[421759157,1778116232000,-4536.03,0.0001221,2]
[421759158,1778116232000,-458.44,0.0001221,2]
[421759159,1778116232000,-250.0,0.00012216,2]
[421759164,1778116232000,-182.31006729,0.00012477,2]
[421759180,1778116232000,-299.99,0.00012756,2]
[421759160,1778116232000,-250.0,0.0001242,2]
[421759161,1778116232000,-161.73486169,0.00012477,2]
[421759156,1778116232000,-2000.0,0.00012122,2]
[421759163,1778116232000,-150.0,0.00012477,2]
[421759186,1778116232000,-174.33,0.00012756,2]
[421759165,1778116232000,-150.0,0.00012477,2]
[421759184,1778116232000,-519.75,0.00012756,2]
[421759208,1778116232000,-5667.59408074,0.00013,2]
[421759209,1778116232000,-500.0,0.00013,2]
[421759206,1778116232000,-500.0,0.00012973,2]
[421759210,1778116232000,-5405.62062069,0.0001305,2]
[421759212,1778116232000,-2770.0737884,0.00013134,2]
[421759215,1778116232000,-351.77,0.00013202,2]
[421759213,1778116232000,-150.0,0.0001317,2]
[421759216,1778116232000,-193.0,0.00013205,2]
[421759214,1778116232000,-1000.0,0.00013201,2]
[421759217,1778116232000,-1730.13146909,0.00013205,2]
[421759218,1778116232000,-250.0,0.00013205,2]
[421759219,1778116232000,-178.0,0.00013215,2]
[421759220,1778116232000,-606.5595874,0.00013274,2]
[421759221,1778116232000,-420.0,0.00013303,2]
[421759222,1778116232000,-500.0,0.0001331,2]
[421759187,1778116232000,-3008.48,0.00012756,2]
[421759211,1778116232000,-8252.18886465,0.00013121,2]
[421759205,1778116232000,-500.45374323,0.00012973,2]
[421759207,1778116232000,-1000.0,0.00012999,2]
[421759200,1778116232000,-160.86224571,0.00012973,2]
[421759185,1778116232000,-10232.3,0.00012756,2]
[421759189,1778116232000,-19611.54,0.00012757,2]
[421759191,1778116232000,-8252.18886471,0.00012899,2]
[421759188,1778116232000,-4483.95,0.00012756,2]
[421759196,1778116232000,-58921.45080348,0.00012963,2]
[421759203,1778116232000,-500.0,0.00012973,2]
[421759192,1778116232000,-197.43,0.00012913,2]
[421759201,1778116232000,-501.10461545,0.00012973,2]
[421759190,1778116232000,-816.89,0.00012772,2]
[421759194,1778116232000,-40844.50796506,0.00012963,2]
[421759193,1778116232000,-160.63,0.00012963,2]
[421759195,1778116232000,-97046.03123146,0.00012963,2]
[421759202,1778116232000,-500.0,0.00012973,2]
[421759198,1778116232000,-500.0,0.00012973,2]
[421759204,1778116232000,-500.0,0.00012973,2]
[421759199,1778116232000,-500.0,0.00012973,2]
[421759197,1778116232000,-500.0,0.00012973,2]
[421759233,1778116233000,-5757.8207691,0.00013505,2]
[421759230,1778116233000,-700.0,0.000135,4]
[421759227,1778116233000,-8252.18886465,0.00013344,2]
[421759229,1778116233000,-1000.0,0.000135,2]
[421759228,1778116233000,-150.0,0.00013473,2]
[421759224,1778116233000,-159.38,0.00013321,2]
[421759231,1778116233000,-14203.85766986,0.00013505,2]
[421759236,1778116233000,-298.65465985,0.00013505,2]
[421759226,1778116233000,-1680.0,0.00013332,2]
[421759237,1778116233000,-1000.0,0.00013521,2]
[421759258,1778116233000,-6038.6852523,0.00013566,2]
[421759246,1778116233000,-188.35098802,0.00013521,2]
[421759241,1778116233000,-319.49667034,0.00013521,2]
[421759239,1778116233000,-1000.0,0.00013521,2]
[421759248,1778116233000,-1000.0,0.00013521,2]
[421759243,1778116233000,-619.14270688,0.00013521,2]
[421759252,1778116233000,-351.77,0.00013532,2]
[421759254,1778116233000,-4238.899,0.00013532,2]
[421759256,1778116233000,-344.167,0.00013532,2]
[421759260,1778116233000,-1305.0,0.00013566,2]
[421759250,1778116233000,-1000.0,0.00013521,2]
[421759299,1778116238000,-151.0,0.00013597,2]
[421759303,1778116238000,-151.0,0.00013597,2]
[421759302,1778116238000,-151.0,0.00013597,2]
[421759301,1778116238000,-151.0,0.00013597,2]
[421759305,1778116238000,-151.0,0.00013597,2]
[421759307,1778116238000,-151.0,0.00013597,2]
[421759310,1778116238000,-2080.17592889,0.00013597,2]
[421759308,1778116238000,-151.0,0.00013597,2]
[421759294,1778116238000,-151.0,0.00013597,2]
[421759300,1778116238000,-151.0,0.00013597,2]
[421759304,1778116238000,-151.0,0.00013597,2]
[421759293,1778116238000,-151.0,0.00013597,2]
[421759289,1778116238000,-151.0,0.00013597,2]
[421759291,1778116238000,-151.0,0.00013597,2]
[421759287,1778116238000,-500.0,0.00013597,2]
[421759296,1778116238000,-151.0,0.00013597,2]
[421759290,1778116238000,-151.0,0.00013597,2]
[421759295,1778116238000,-151.0,0.00013597,2]
[421759298,1778116238000,-151.0,0.00013597,2]
[421759292,1778116238000,-151.0,0.00013597,2]
[421759286,1778116238000,-200.0,0.00013597,2]
[421759288,1778116238000,-151.0,0.00013597,2]
[421759285,1778116238000,-908.50361235,0.00013566,2]
[421759306,1778116238000,-151.0,0.00013597,2]
[421759297,1778116238000,-151.0,0.00013597,2]
[421759309,1778116238000,-151.0,0.00013597,2]
[421759311,1778116238000,-1500.0,0.000136,4]
[421759360,1778116238000,-3000.0,0.000138,5]
[421759364,1778116238000,-166.66,0.00013836,2]
[421759324,1778116238000,-500.0,0.00013673,2]
[421759362,1778116238000,-20260.33309877,0.00013815,2]
[421759349,1778116238000,-5000.0,0.00013782,2]
[421759356,1778116238000,-1458.13046436,0.00013783,2]
[421759351,1778116238000,-4927.4593,0.00013783,2]
[421759354,1778116238000,-854.54746409,0.00013783,2]
[421759358,1778116238000,-8252.18886465,0.00013788,2]
[421759345,1778116238000,-2126.8734,0.00013782,2]
[421759341,1778116238000,-10592.85531543,0.00013781,2]
[421759343,1778116238000,-233.98723583,0.00013782,2]
[421759339,1778116238000,-458.44,0.00013736,2]
[421759347,1778116238000,-41926.1943,0.00013782,2]
[421759336,1778116238000,-1000.0,0.00013699,2]
[421759326,1778116238000,-839.13,0.00013699,2]
[421759312,1778116238000,-2000.0,0.00013638,2]
[421759330,1778116238000,-154.11,0.00013699,2]
[421759328,1778116238000,-166.66,0.00013699,2]
[421759316,1778116238000,-18382.15201577,0.0001366,2]
[421759337,1778116238000,-2200.0,0.000137,5]
[421759314,1778116238000,-1878.181083,0.0001366,2]
[421759334,1778116238000,-4903.49,0.00013699,2]
[421759321,1778116238000,-501.42497213,0.00013673,2]
[421759332,1778116238000,-770.59,0.00013699,2]
[421759318,1778116238000,-168.25532997,0.00013673,2]
[421759322,1778116238000,-500.0,0.00013673,2]
[421759452,1778116239000,-500.0,0.00013881,2]
[421759450,1778116239000,-500.0,0.00013881,2]
[421759446,1778116239000,-500.0,0.00013881,2]
[421759448,1778116239000,-500.0,0.00013881,2]
[421759444,1778116239000,-500.0,0.00013881,2]
[421759477,1778116239000,-500.0,0.00013881,2]
[421759442,1778116239000,-500.0,0.00013881,2]
[421759440,1778116239000,-500.0,0.00013881,2]
[421759436,1778116239000,-500.0,0.00013881,2]
[421759434,1778116239000,-500.0,0.00013881,2]
[421759456,1778116239000,-500.0,0.00013881,2]
[421759454,1778116239000,-346.95894298,0.00013881,2]
[421759458,1778116239000,-500.0,0.00013881,2]
[421759475,1778116239000,-500.0,0.00013881,2]
[421759460,1778116239000,-500.0,0.00013881,2]
[421759465,1778116239000,-300.0,0.00013881,2]
[421759478,1778116239000,-500.0,0.00013881,2]
[421759473,1778116239000,-199.75341924,0.00013881,2]
[421759480,1778116239000,-500.0,0.00013881,2]
[421759483,1778116239000,-500.0,0.00013881,2]
[421759469,1778116239000,-500.0,0.00013881,2]
[421759479,1778116239000,-500.0,0.00013881,2]
[421759467,1778116239000,-500.0,0.00013881,2]
[421759482,1778116239000,-500.0,0.00013881,2]
[421759481,1778116239000,-500.0,0.00013881,2]
[421759438,1778116239000,-500.0,0.00013881,2]
[421759487,1778116239000,-674.95,0.00013881,2]
[421759462,1778116239000,-500.0,0.00013881,2]
[421759427,1778116239000,-500.0,0.00013881,2]
[421759407,1778116239000,-500.0,0.00013881,2]
[421759429,1778116239000,-500.0,0.00013881,2]
[421759374,1778116239000,-388.00733685,0.00013872,2]
[421759380,1778116239000,-300.0,0.00013881,2]
[421759366,1778116239000,-351.77,0.00013862,2]
[421759370,1778116239000,-165.23528113,0.00013863,2]
[421759381,1778116239000,-666.0,0.00013881,2]
[421759378,1778116239000,-151.0,0.0001388,2]
[421759376,1778116239000,-500.0,0.00013873,2]
[421759383,1778116239000,-300.0,0.00013881,2]
[421759368,1778116239000,-158.91744415,0.00013863,2]
[421759389,1778116239000,-500.0,0.00013881,2]
[421759385,1778116239000,-500.0,0.00013881,2]
[421759371,1778116239000,-260.0,0.00013863,2]
[421759387,1778116239000,-500.0,0.00013881,2]
[421759423,1778116239000,-500.0,0.00013881,2]
[421759391,1778116239000,-500.0,0.00013881,2]
[421759393,1778116239000,-500.0,0.00013881,2]
[421759405,1778116239000,-500.0,0.00013881,2]
[421759410,1778116239000,-182.06996762,0.00013881,2]
[421759396,1778116239000,-500.0,0.00013881,2]
[421759400,1778116239000,-500.0,0.00013881,2]
[421759398,1778116239000,-500.0,0.00013881,2]
[421759412,1778116239000,-1070.57902924,0.00013881,5]
[421759415,1778116239000,-500.0,0.00013881,2]
[421759417,1778116239000,-500.0,0.00013881,2]
[421759419,1778116239000,-500.0,0.00013881,2]
[421759431,1778116239000,-500.0,0.00013881,2]
[421759421,1778116239000,-500.0,0.00013881,2]
[421759425,1778116239000,-500.0,0.00013881,2]
[421759402,1778116239000,-502.80341295,0.00013881,2]
[421759485,1778116239000,-1094.12006001,0.00013881,5]
[421759537,1778116239000,-500.0,0.00013882,2]
[421759488,1778116239000,-674.95,0.00013881,2]
[421759554,1778116239000,-1000.0,0.00013882,2]
[421759556,1778116239000,-1000.0,0.00013882,2]
[421759558,1778116239000,-1000.0,0.00013882,2]
[421759559,1778116239000,-1000.0,0.00013882,2]
[421759567,1778116239000,-1000.0,0.00013882,2]
[421759569,1778116239000,-1000.0,0.00013882,2]
[421759561,1778116239000,-1000.0,0.00013882,2]
[421759571,1778116239000,-1000.0,0.00013882,2]
[421759563,1778116239000,-1000.0,0.00013882,2]
[421759573,1778116239000,-1000.0,0.00013882,2]
[421759565,1778116239000,-1000.0,0.00013882,2]
[421759577,1778116239000,-1000.0,0.00013882,2]
[421759581,1778116239000,-1000.0,0.00013882,2]
[421759552,1778116239000,-1000.0,0.00013882,2]
[421759579,1778116239000,-1000.0,0.00013882,2]
[421759585,1778116239000,-1000.0,0.00013882,2]
[421759583,1778116239000,-1000.0,0.00013882,2]
[421759588,1778116239000,-1000.0,0.00013882,2]
[421759599,1778116239000,-500.0,0.00013882,2]
[421759601,1778116239000,-500.0,0.00013882,2]
[421759603,1778116239000,-500.0,0.00013882,2]
[421759606,1778116239000,-500.0,0.00013882,2]
[421759592,1778116239000,-500.0,0.00013882,2]
[421759590,1778116239000,-387.51207106,0.00013882,2]
[421759605,1778116239000,-500.0,0.00013882,2]
[421759595,1778116239000,-500.0,0.00013882,2]
[421759604,1778116239000,-500.0,0.00013882,2]
[421759471,1778116239000,-500.0,0.00013881,2]
[421759575,1778116239000,-1000.0,0.00013882,2]
[421759548,1778116239000,-1000.0,0.00013882,2]
[421759597,1778116239000,-500.0,0.00013882,2]
[421759544,1778116239000,-500.0,0.00013882,2]
[421759498,1778116239000,-500.0,0.00013881,2]
[421759494,1778116239000,-500.0,0.00013881,2]
[421759506,1778116239000,-500.0,0.00013881,2]
[421759500,1778116239000,-500.0,0.00013881,2]
[421759496,1778116239000,-500.0,0.00013881,2]
[421759490,1778116239000,-674.95,0.00013881,2]
[421759512,1778116239000,-526.26,0.00013881,2]
[421759550,1778116239000,-1000.0,0.00013882,2]
[421759492,1778116239000,-674.95,0.00013881,2]
[421759505,1778116239000,-500.0,0.00013881,2]
[421759510,1778116239000,-526.26,0.00013881,2]
[421759508,1778116239000,-500.0,0.00013881,2]
[421759518,1778116239000,-912433.4385,0.00013882,2]
[421759516,1778116239000,-526.26,0.00013881,2]
[421759502,1778116239000,-500.0,0.00013881,2]
[421759514,1778116239000,-526.26,0.00013881,2]
[421759520,1778116239000,-300.0,0.00013882,2]
[421759546,1778116239000,-1000.0,0.00013882,2]
[421759541,1778116239000,-500.0,0.00013882,2]
[421759543,1778116239000,-500.0,0.00013882,2]
[421759535,1778116239000,-500.0,0.00013882,2]
[421759532,1778116239000,-500.0,0.00013882,2]
[421759539,1778116239000,-500.0,0.00013882,2]
[421759533,1778116239000,-500.0,0.00013882,2]
[421759526,1778116239000,-500.0,0.00013882,2]
[421759524,1778116239000,-500.0,0.00013882,2]
[421759528,1778116239000,-500.0,0.00013882,2]
[421759522,1778116239000,-300.0,0.00013882,2]
[421759530,1778116239000,-500.0,0.00013882,2]
[421759658,1778116240000,-288.838581,0.00013882,2]
[421759645,1778116240000,-200.0,0.00013882,2]
[421759659,1778116240000,-173.0,0.00013882,2]
[421759657,1778116240000,-200.0,0.00013882,2]
[421759646,1778116240000,-200.0,0.00013882,2]
[421759636,1778116240000,-674.95,0.00013882,2]
[421759644,1778116240000,-200.0,0.00013882,2]
[421759643,1778116240000,-200.0,0.00013882,2]
[421759641,1778116240000,-200.0,0.00013882,2]
[421759637,1778116240000,-674.95,0.00013882,2]
[421759639,1778116240000,-674.95,0.00013882,2]
[421759642,1778116240000,-200.0,0.00013882,2]
[421759647,1778116240000,-200.0,0.00013882,2]
[421759667,1778116240000,-526.26,0.00013882,2]
[421759651,1778116240000,-500.0,0.00013882,2]
[421759654,1778116240000,-200.0,0.00013882,2]
[421759655,1778116240000,-200.0,0.00013882,2]
[421759649,1778116240000,-500.0,0.00013882,2]
[421759653,1778116240000,-507.547478,0.00013882,2]
[421759652,1778116240000,-500.0,0.00013882,2]
[421759663,1778116240000,-500.0,0.00013882,2]
[421759660,1778116240000,-500.0,0.00013882,2]
[421759664,1778116240000,-500.0,0.00013882,2]
[421759662,1778116240000,-500.0,0.00013882,2]
[421759661,1778116240000,-500.0,0.00013882,2]
[421759665,1778116240000,-500.0,0.00013882,2]
[421759638,1778116240000,-674.95,0.00013882,2]
[421759650,1778116240000,-200.0,0.00013882,2]
[421759635,1778116240000,-674.95,0.00013882,2]
[421759622,1778116240000,-500.0,0.00013882,2]
[421759634,1778116240000,-156.073,0.00013882,2]
[421759668,1778116240000,-526.26,0.00013882,2]
[421759607,1778116240000,-500.0,0.00013882,2]
[421759608,1778116240000,-500.0,0.00013882,2]
[421759610,1778116240000,-500.0,0.00013882,2]
[421759619,1778116240000,-500.0,0.00013882,2]
[421759613,1778116240000,-500.0,0.00013882,2]
[421759612,1778116240000,-500.0,0.00013882,2]
[421759620,1778116240000,-500.0,0.00013882,2]
[421759609,1778116240000,-500.0,0.00013882,2]
[421759611,1778116240000,-500.0,0.00013882,2]
[421759614,1778116240000,-500.0,0.00013882,2]
[421759615,1778116240000,-500.0,0.00013882,2]
[421759616,1778116240000,-500.0,0.00013882,2]
[421759617,1778116240000,-500.0,0.00013882,2]
[421759618,1778116240000,-500.0,0.00013882,2]
[421759630,1778116240000,-500.0,0.00013882,2]
[421759621,1778116240000,-500.0,0.00013882,2]
[421759631,1778116240000,-500.0,0.00013882,2]
[421759623,1778116240000,-500.0,0.00013882,2]
[421759628,1778116240000,-500.0,0.00013882,2]
[421759626,1778116240000,-500.0,0.00013882,2]
[421759624,1778116240000,-500.0,0.00013882,2]
[421759625,1778116240000,-500.0,0.00013882,2]
[421759629,1778116240000,-500.0,0.00013882,2]
[421759627,1778116240000,-500.0,0.00013882,2]
[421759632,1778116240000,-500.0,0.00013882,2]
[421759633,1778116240000,-500.0,0.00013882,2]
[421759640,1778116240000,-674.95,0.00013882,2]
[421759669,1778116240000,-526.26,0.00013882,2]
[421759648,1778116240000,-200.0,0.00013882,2]
[421759670,1778116240000,-526.26,0.00013882,2]
[421759706,1778116240000,-500.0,0.00013982,2]
[421759704,1778116240000,-500.0,0.00013982,2]
[421759705,1778116240000,-500.0,0.00013982,2]
[421759701,1778116240000,-500.0,0.00013982,2]
[421759703,1778116240000,-500.0,0.00013982,2]
[421759702,1778116240000,-500.0,0.00013982,2]
[421759710,1778116240000,-500.0,0.00013982,2]
[421759711,1778116240000,-500.0,0.00013982,2]
[421759713,1778116240000,-500.0,0.00013982,2]
[421759716,1778116240000,-500.0,0.00013982,2]
[421759712,1778116240000,-500.0,0.00013982,2]
[421759718,1778116240000,-500.0,0.00013982,2]
[421759717,1778116240000,-500.0,0.00013982,2]
[421759715,1778116240000,-500.0,0.00013982,2]
[421759709,1778116240000,-500.0,0.00013982,2]
[421759720,1778116240000,-500.0,0.00013982,2]
[421759714,1778116240000,-500.0,0.00013982,2]
[421759708,1778116240000,-500.0,0.00013982,2]
[421759719,1778116240000,-500.0,0.00013982,2]
[421759721,1778116240000,-500.0,0.00013982,2]
[421759722,1778116240000,-500.0,0.00013982,2]
[421759723,1778116240000,-500.0,0.00013982,2]
[421759728,1778116240000,-420.0,0.00013993,2]
[421759729,1778116240000,-250.0,0.00014,2]
[421759726,1778116240000,-150.0,0.00013986,2]
[421759725,1778116240000,-1051.772,0.00013983,2]
[421759727,1778116240000,-12218.77486719,0.0001399,2]
[421759707,1778116240000,-500.0,0.00013982,2]
[421759699,1778116240000,-500.0,0.00013982,2]
[421759666,1778116240000,-526.26,0.00013882,2]
[421759700,1778116240000,-500.0,0.00013982,2]
[421759671,1778116240000,-526.26,0.00013882,2]
[421759681,1778116240000,-151.0,0.00013883,2]
[421759679,1778116240000,-151.0,0.00013883,2]
[421759683,1778116240000,-3700.0,0.000139,5]
[421759672,1778116240000,-33135.002,0.00013883,2]
[421759682,1778116240000,-183.660888,0.00013883,2]
[421759680,1778116240000,-151.0,0.00013883,2]
[421759697,1778116240000,-500.0,0.00013982,2]
[421759724,1778116240000,-500.0,0.00013982,2]
[421759674,1778116240000,-202.47152,0.00013883,2]
[421759678,1778116240000,-151.0,0.00013883,2]
[421759673,1778116240000,-2000.0,0.00013883,2]
[421759675,1778116240000,-202.47152,0.00013883,2]
[421759676,1778116240000,-202.47152,0.00013883,2]
[421759677,1778116240000,-202.47152,0.00013883,2]
[421759689,1778116240000,-500.0,0.00013981,2]
[421759686,1778116240000,-166.66,0.00013973,2]
[421759698,1778116240000,-500.0,0.00013982,2]
[421759696,1778116240000,-500.0,0.00013982,2]
[421759684,1778116240000,-10592.85531538,0.00013941,2]
[421759691,1778116240000,-500.0,0.00013982,2]
[421759685,1778116240000,-20260.33309877,0.0001397,2]
[421759693,1778116240000,-500.0,0.00013982,2]
[421759692,1778116240000,-500.0,0.00013982,2]
[421759690,1778116240000,-674.95,0.00013981,2]
[421759695,1778116240000,-500.0,0.00013982,2]
[421759694,1778116240000,-500.0,0.00013982,2]
[421759687,1778116240000,-500.0,0.00013981,2]
[421759688,1778116240000,-500.0,0.00013981,2]
[421759775,1778116241000,-206507.3901969,0.00014126,2]
[421759774,1778116241000,-344711.3888584,0.00014126,2]
[421759773,1778116241000,-2065.98736,0.00014126,2]
[421759772,1778116241000,-114119.0082148,0.00014126,2]
[421759769,1778116241000,-500.0,0.00014125,2]
[421759762,1778116241000,-500.0,0.00014125,2]
[421759766,1778116241000,-674.95,0.00014125,2]
[421759767,1778116241000,-674.95,0.00014125,2]
[421759765,1778116241000,-20260.33309877,0.00014125,2]
[421759761,1778116241000,-500.0,0.00014125,2]
[421759764,1778116241000,-518.42529008,0.00014125,2]
[421759768,1778116241000,-500.0,0.00014125,2]
[421759777,1778116241000,-76567.8648274,0.00014126,2]
[421759788,1778116241000,-1458.13046436,0.00014342,2]
[421759771,1778116241000,-526.26,0.00014125,2]
[421759776,1778116241000,-132949.0518819,0.00014126,2]
[421759780,1778116241000,-2157.14243826,0.00014145,2]
[421759778,1778116241000,-8380.3372816,0.00014126,2]
[421759782,1778116241000,-500.0,0.00014173,2]
[421759783,1778116241000,-351.77,0.00014192,2]
[421759786,1778116241000,-10592.85531538,0.00014261,2]
[421759787,1778116241000,-20260.33309877,0.0001428,2]
[421759784,1778116241000,-349.24374519,0.00014221,2]
[421759781,1778116241000,-500.0,0.00014173,2]
[421759779,1778116241000,-173.0,0.00014126,2]
[421759785,1778116241000,-166.66,0.00014247,2]
[421759763,1778116241000,-500.0,0.00014125,2]
[421759770,1778116241000,-526.26,0.00014125,2]
[421759760,1778116241000,-500.0,0.00014125,2]
[421759752,1778116241000,-300.0,0.00014125,2]
[421759758,1778116241000,-500.0,0.00014125,2]
[421759789,1778116241000,-150.0,0.00014361,2]
[421759730,1778116241000,-1770.0,0.00014005,5]
[421759731,1778116241000,-500.0,0.00014022,2]
[421759732,1778116241000,-500.0,0.00014022,2]
[421759733,1778116241000,-500.0,0.00014022,2]
[421759735,1778116241000,-500.0,0.00014022,2]
[421759739,1778116241000,-1500.0,0.00014068,2]
[421759736,1778116241000,-500.0,0.00014022,2]
[421759738,1778116241000,-1500.0,0.00014068,2]
[421759737,1778116241000,-1500.0,0.00014068,2]
[421759734,1778116241000,-500.0,0.00014022,2]
[421759744,1778116241000,-500.0,0.00014082,2]
[421759740,1778116241000,-1500.0,0.00014068,2]
[421759743,1778116241000,-559.40184847,0.00014082,2]
[421759741,1778116241000,-500.0,0.00014082,2]
[421759745,1778116241000,-160.80309549,0.00014082,2]
[421759754,1778116241000,-500.0,0.00014125,2]
[421759755,1778116241000,-500.0,0.00014125,2]
[421759756,1778116241000,-500.0,0.00014125,2]
[421759753,1778116241000,-300.0,0.00014125,2]
[421759746,1778116241000,-500.0,0.00014082,2]
[421759747,1778116241000,-500.0,0.00014082,2]
[421759749,1778116241000,-500.0,0.00014082,2]
[421759750,1778116241000,-10592.85531538,0.00014101,2]
[421759751,1778116241000,-166.66,0.0001411,2]
[421759748,1778116241000,-500.0,0.00014082,2]
[421759757,1778116241000,-500.0,0.00014125,2]
[421759759,1778116241000,-500.0,0.00014125,2]
[421759790,1778116241000,-181.376504,0.00014367,2]
[421759742,1778116241000,-215.62832151,0.00014082,2]